[Event "19th IPCA WCC 2019"]
[Site "Ruzomberok"]
[Date "2019.07.06"]
[Round "9.13"]
[White "Sovetov, Oleksandr"]
[Black "Tsapalin, Sergey"]
[Result "1-0"]
[ECO "A57"]
[WhiteElo "2009"]
[BlackElo "1935"]
[Annotator "NA"]
[PlyCount "69"]
[EventDate "2019.06.28"]
[EventType "swiss"]
[EventCountry "SVK"]
[SourceTitle "playchess.com"]
[Source "ChessBase"]
[SourceQuality "1"]
[TimeControl "5400+30"]

1. d4 {[%emt 0:00:00]} Nf6 {[%emt 0:00:00]} 2. c4 {[%emt 0:00:00]} c5 {[%emt 0:00:00]} 3. d5 {[%emt 0:00:00]} b5 {[%emt 0:00:00]} 4. Nf3 {[%emt 0:00:28]} g6 {[%emt 0:00:09]} 5. cxb5 {[%emt 0:01:14]} a6 {[%emt 0:00:02]} 6. b6 {[%emt 0:00:44]} Qxb6 {[%emt 0:00:16]} 7. Nc3 {[%emt 0:00:17]} Bg7 {[%emt 0:00:24]} 8. e4 {[%emt 0:01:03]} d6 {[%emt 0:00:21]} 9. Nd2 {[%emt 0:02:29]} O-O {[%emt 0:02:21]} 10. Qb3 {[%emt 0:02:18]} Qxb3 {[%emt 0:01:03]} 11. Nxb3 {[%emt 0:00:13]} a5 {[%emt 0:04:35]} 12. Nd2 {[%emt 0:00:51]} Ba6 {[%emt 0:00:39]} 13. f3 {[%emt 0:00:39]} Nfd7 {[%emt 0:00:47]} 14. Nc4 {[%emt 0:04:01]} Bxc4 {[%emt 0:01:11]} 15. Bxc4 {[%emt 0:00:02]} Nb6 {[%emt 0:00:19]} 16. Bb5 {[%emt 0:01:07]} a4 {[%emt 0:01:32]} 17. a3 {[%emt 0:01:15]} Ra5 {[%emt 0:00:20]} 18. Be2 {[%emt 0:00:47]} N8d7 {[%emt 0:00:40]} 19. Bd2 {[%emt 0:01:35]} Raa8 {[%emt 0:01:17]} 20. Bg5 {[%emt 0:02:51]} Bf6 {[%emt 0:04:23]} 21. Bxf6 {[%emt 0:01:16]} Nxf6 {[%emt 0:00:48]} 22. Bb5 Rfb8 {[%emt 0:00:36]} 23. O-O-O {[%emt 0:07:35]} Nfd7 {[%emt 0:01:06]} 24. f4 {[%emt 0:01:30]} Nf6 {[%emt 0:06:00]} 25. Rhe1 {[%emt 0:03:36]} Nh5 {[%emt 0:02:47]} 26. g3 {[%emt 0:00:55]} Ng7 {[%emt 0:00:49]} 27. g4 {[%emt 0:02:10]} Rd8 {[%emt 0:20:05]} 28. e5 {[%emt 0:05:42]} e6 {[%emt 0:02:35]} 29. exd6 {[%emt 0:04:50]} Rxd6 {[%emt 0:02:43]} 30. Ne4 {[%emt 0:04:32]} Rdd8 {[%emt 0:02:42]} 31. Nf6+ {[%emt 0:01:00]} Kh8 {[%emt 0:00:09]} 32. d6 {[%emt 0:01:42]} Ra5 {[%emt 0:00:36]} 33. Bc6 {[%emt 0:03:08]} c4 {[%emt 0:00:18]} 34. Re5 {[%emt 0:01:36]} Nd5 {[%emt 0:02:12]} 35. Nxd5 {[%emt 0:05:28]} 1-0

[Event "19th IPCA WCC 2019"]
[Site "Ruzomberok"]
[Date "2019.07.06"]
[Round "9.14"]
[White "Jennitha, Anto K."]
[Black "Belak, Stefan"]
[Result "1-0"]
[ECO "A06"]
[WhiteElo "1972"]
[BlackElo "1851"]
[Annotator "NA"]
[PlyCount "109"]
[EventDate "2019.06.28"]
[EventType "swiss"]
[EventCountry "SVK"]
[SourceTitle "playchess.com"]
[Source "ChessBase"]
[SourceQuality "1"]
[TimeControl "5400+30"]

1. Nf3 {[%emt 0:00:00]} d5 {[%emt 0:00:00]} 2. g3 {[%emt 0:00:00]} c6 {[%emt 0:00:00]} 3. Bg2 {[%emt 0:00:00]} e6 {[%emt 0:00:00]} 4. O-O {[%emt 0:00:05]} f5 {[%emt 0:00:08]} 5. d3 {[%emt 0:00:10]} Nf6 {[%emt 0:00:11]} 6. b3 {[%emt 0:00:32]} Be7 {[%emt 0:00:17]} 7. Bb2 {[%emt 0:00:10]} O-O {[%emt 0:00:12]} 8. Nbd2 {[%emt 0:04:02]} Qe8 {[%emt 0:15:47]} 9. Ne5 {[%emt 0:03:38]} Nbd7 {[%emt 0:04:43]} 10. Ndf3 {[%emt 0:12:39]} Qh5 {[%emt 0:04:50]} 11. Qd2 {[%emt 0:06:30]} Nxe5 {[%emt 0:03:46]} 12. Nxe5 {[%emt 0:00:16]} Ng4 {[%emt 0:01:21]} 13. h3 {[%emt 0:04:53]} Nxe5 {[%emt 0:01:46]} 14. Bxe5 {[%emt 0:00:03]} Bf6 {[%emt 0:01:59]} 15. Qe3 {[%emt 0:09:06]} Qg6 {[%emt 0:03:22]} 16. Kh2 {[%emt 0:04:26]} Bxe5 {[%emt 0:02:38]} 17. Qxe5 {[%emt 0:00:05]} Qf6 {[%emt 0:00:05]} 18. Qxf6 {[%emt 0:03:54]} Rxf6 {[%emt 0:04:10]} 19. d4 {[%emt 0:00:33]} Bd7 {[%emt 0:01:14]} 20. e3 {[%emt 0:03:37]} h5 {[%emt 0:02:56]} 21. h4 {[%emt 0:01:52]} g6 {[%emt 0:01:17]} 22. Rfc1 {[%emt 0:02:45]} Rff8 {[%emt 0:01:16]} 23. Bf1 {[%emt 0:05:29]} Kg7 {[%emt 0:00:54]} 24. c4 {[%emt 0:02:42]} a5 {[%emt 0:03:05]} 25. a3 {[%emt 0:02:13]} Ra7 {[%emt 0:00:10]} 26. Kg2 {[%emt 0:00:54]} Kf6 {[%emt 0:00:12]} 27. Kf3 {[%emt 0:09:38]} Rc8 {[%emt 0:02:34]} 28. Kf4 {[%emt 0:01:21]} Rb8 {[%emt 0:00:36]} 29. Be2 {[%emt 0:01:10]} Rba8 {[%emt 0:00:11]} 30. Rc3 {[%emt 0:07:44]} Re8 {[%emt 0:00:21]} 31. Rd1 {[%emt 0:04:37]} Re7 {[%emt 0:02:34]} 32. f3 {[%emt 0:02:22]} Ra8 {[%emt 0:09:32]} 33. g4 {[%emt 0:03:39]} hxg4 {[%emt 0:03:37]} 34. fxg4 {[%emt 0:00:03]} Rh7 {[%emt 0:00:32]} 35. g5+ {[%emt 0:01:33]} Ke7 {[%emt 0:00:22]} 36. Rh1 {[%emt 0:00:03]} Rah8 {[%emt 0:00:11]} 37. Kg3 {[%emt 0:00:03]} Kd6 {[%emt 0:01:17]} 38. c5+ {[%emt 0:00:33]} Ke7 {[%emt 0:00:21]} 39. Bf3 {[%emt 0:02:55]} e5 {[%emt 0:01:07]} 40. Rc2 {[%emt 0:00:15]} f4+ {[%emt 0:05:05]} 41. exf4 {[%emt 0:00:02]} exf4+ {[%emt 0:00:11]} 42. Kxf4 {[%emt 0:00:03]} Rxh4+ {[%emt 0:00:12]} 43. Rxh4 {[%emt 0:00:01]} Rxh4+ {[%emt 0:00:12]} 44. Ke5 {[%emt 0:00:35]} Bf5 {[%emt 0:00:48]} 45. Re2 {[%emt 0:00:36]} Bd3 {[%emt 0:01:43]} 46. Re1 {[%emt 0:00:10]} Bc2 {[%emt 0:00:25]} 47. b4 {[%emt 0:00:10]} axb4 {[%emt 0:00:12]} 48. axb4 Bf5 {[%emt 0:02:01]} 49. Rh1 {[%emt 0:00:45]} Rxh1 {[%emt 0:05:06]} 50. Bxh1 {[%emt 0:00:01]} Bd3 {[%emt 0:01:27]} 51. Bf3 {[%emt 0:00:25]} Bf1 52. Bd1 {[%emt 0:00:26]} Bd3 {[%emt 0:00:41]} 53. Ba4 {[%emt 0:00:07]} Be2 {[%emt 0:01:38]} 54. Bc2 Bh5 55. Bd3 {[%emt 0:00:08]} 1-0

[Event "19th IPCA WCC 2019"]
[Site "Ruzomberok"]
[Date "2019.07.06"]
[Round "9.15"]
[White "Matana, Zoran"]
[Black "Roehrig, Uwe"]
[Result "0-1"]
[ECO "E71"]
[WhiteElo "1818"]
[BlackElo "1802"]
[Annotator "NA"]
[PlyCount "74"]
[EventDate "2019.06.28"]
[EventType "swiss"]
[EventCountry "SVK"]
[SourceTitle "playchess.com"]
[Source "ChessBase"]
[SourceQuality "1"]
[TimeControl "5400+30"]

1. d4 {[%emt 0:00:00]} Nf6 {[%emt 0:00:00]} 2. c4 {[%emt 0:00:00]} g6 {[%emt 0:01:00]} 3. Nc3 {[%emt 0:00:00]} Bg7 {[%emt 0:00:09]} 4. e4 {[%emt 0:00:13]} d6 {[%emt 0:00:10]} 5. h3 {[%emt 0:00:14]} Nbd7 {[%emt 0:00:35]} 6. Be2 {[%emt 0:00:24]} O-O {[%emt 0:00:18]} 7. Be3 {[%emt 0:00:16]} h6 {[%emt 0:00:30]} 8. f4 {[%emt 0:00:45]} c5 {[%emt 0:00:41]} 9. d5 {[%emt 0:01:05]} a6 {[%emt 0:03:48]} 10. Qd2 {[%emt 0:00:17]} Kh7 {[%emt 0:01:55]} 11. g4 {[%emt 0:00:29]} Ne8 {[%emt 0:02:02]} 12. Nf3 {[%emt 0:00:46]} Rb8 {[%emt 0:00:53]} 13. h4 {[%emt 0:02:15]} Qa5 {[%emt 0:02:25]} 14. h5 {[%emt 0:00:31]} Ndf6 {[%emt 0:01:52]} 15. hxg6+ {[%emt 0:04:32]} fxg6 {[%emt 0:01:27]} 16. Ng5+ {[%emt 0:06:03]} Kg8 {[%emt 0:00:58]} 17. Ne6 {[%emt 0:00:21]} Bxe6 {[%emt 0:02:16]} 18. dxe6 {[%emt 0:00:10]} Nc7 {[%emt 0:00:51]} 19. g5 {[%emt 0:01:54]} Nfe8 {[%emt 0:01:35]} 20. gxh6 {[%emt 0:04:31]} Bxc3 {[%emt 0:00:27]} 21. bxc3 {[%emt 0:01:05]} Nxe6 {[%emt 0:00:25]} 22. Bg4 {[%emt 0:01:40]} N6c7 {[%emt 0:03:55]} 23. f5 {[%emt 0:02:59]} gxf5 {[%emt 0:01:06]} 24. Bxf5 {[%emt 0:01:03]} b5 {[%emt 0:01:00]} 25. Qg2+ {[%emt 0:03:35]} Kh8 {[%emt 0:01:26]} 26. Qb2 {[%emt 0:02:07]} e6 {[%emt 0:01:42]} 27. Bg4 {[%emt 0:02:28]} Nf6 {[%emt 0:00:35]} 28. Bf3 {[%emt 0:00:03]} bxc4 {[%emt 0:00:37]} 29. Qc2 {[%emt 0:00:19]} Qb5 {[%emt 0:04:43]} 30. Bc1 {[%emt 0:01:50]} e5 {[%emt 0:01:32]} 31. Qd2 {[%emt 0:03:24]} Qd7 {[%emt 0:00:56]} 32. Qg5 {[%emt 0:07:07]} Ne6 {[%emt 0:01:10]} 33. Qh4 {[%emt 0:07:27]} d5 {[%emt 0:02:56]} 34. Bg5 {[%emt 0:04:37]} Nxg5 {[%emt 0:00:48]} 35. Qxg5 {[%emt 0:01:36]} dxe4 {[%emt 0:00:53]} 36. Bxe4 {[%emt 0:02:16]} Nxe4 {[%emt 0:00:17]} 37. Qxe5+ {[%emt 0:00:20]} Nf6 {[%emt 0:00:39]} 0-1

[Event "19th IPCA WCC 2019"]
[Site "Ruzomberok"]
[Date "2019.07.06"]
[Round "9.16"]
[White "Samarth J Rao"]
[Black "Pilimon, Zbigniew"]
[Result "1-0"]
[ECO "D05"]
[WhiteElo "1593"]
[BlackElo "1670"]
[Annotator "NA"]
[PlyCount "71"]
[EventDate "2019.06.28"]
[EventType "swiss"]
[EventCountry "SVK"]
[SourceTitle "playchess.com"]
[Source "ChessBase"]
[SourceQuality "1"]
[TimeControl "5400+30"]

1. d4 {[%emt 0:00:00]} d5 {[%emt 0:00:00]} 2. e3 {[%emt 0:00:00]} Nf6 {[%emt 0:00:20]} 3. Bd3 {[%emt 0:00:00]} e6 {[%emt 0:00:45]} 4. f4 Bd6 {[%emt 0:03:28]} 5. Nf3 {[%emt 0:00:11]} O-O {[%emt 0:00:24]} 6. Nbd2 {[%emt 0:00:18]} b6 {[%emt 0:00:37]} 7. O-O {[%emt 0:00:12]} Bb7 {[%emt 0:00:10]} 8. Ne5 {[%emt 0:00:29]} Nbd7 {[%emt 0:02:05]} 9. Qf3 c5 {[%emt 0:00:42]} 10. c3 {[%emt 0:00:19]} h6 {[%emt 0:01:11]} 11. g4 Nh7 {[%emt 0:02:17]} 12. Qh3 {[%emt 0:01:02]} Ndf6 {[%emt 0:00:42]} 13. Rf3 {[%emt 0:00:21]} Ne4 {[%emt 0:00:33]} 14. Qg2 {[%emt 0:04:39]} Bxe5 {[%emt 0:02:17]} 15. dxe5 {[%emt 0:00:18]} f5 {[%emt 0:17:58]} 16. exf6 {[%emt 0:02:22]} Qxf6 {[%emt 0:07:27]} 17. Rh3 {[%emt 0:00:50]} Qg6 {[%emt 0:04:03]} 18. Nf3 {[%emt 0:01:02]} Nhf6 {[%emt 0:06:48]} 19. Ne5 {[%emt 0:00:58]} Qe8 {[%emt 0:00:28]} 20. g5 {[%emt 0:01:03]} hxg5 {[%emt 0:01:03]} 21. fxg5 {[%emt 0:00:07]} Nd7 {[%emt 0:02:20]} 22. Bxe4 {[%emt 0:00:39]} dxe4 {[%emt 0:04:56]} 23. g6 {[%emt 0:00:09]} Rf6 {[%emt 0:02:19]} 24. Nf7 {[%emt 0:01:33]} Rxf7 {[%emt 0:02:28]} 25. gxf7+ {[%emt 0:00:21]} Qxf7 {[%emt 0:01:09]} 26. Bd2 {[%emt 0:00:02]} Rf8 {[%emt 0:00:29]} 27. c4 {[%emt 0:00:24]} Ne5 {[%emt 0:00:18]} 28. Bc3 {[%emt 0:01:32]} Nf3+ {[%emt 0:01:37]} 29. Kh1 {[%emt 0:00:14]} e5 {[%emt 0:01:01]} 30. Rd1 {[%emt 0:00:19]} Qe7 {[%emt 0:09:56]} 31. Qg6 {[%emt 0:02:24]} Rf6 {[%emt 0:06:31]} 32. Qh7+ {[%emt 0:00:54]} Kf7 {[%emt 0:00:19]} 33. Rg3 {[%emt 0:00:22]} Ke6 {[%emt 0:04:55]} 34. Rxg7 {[%emt 0:00:58]} Rf7 {[%emt 0:00:33]} 35. Rxf7 {[%emt 0:00:45]} Qxf7 {[%emt 0:00:30]} 36. Rd6+ {[%emt 0:00:11]} 1-0

[Event "19th IPCA WCC 2019"]
[Site "Ruzomberok"]
[Date "2019.07.06"]
[Round "9.17"]
[White "Spirka, Jan"]
[Black "Engel, Katalin"]
[Result "0-1"]
[ECO "C02"]
[WhiteElo "1366"]
[BlackElo "1537"]
[Annotator "NA"]
[PlyCount "102"]
[EventDate "2019.06.28"]
[EventType "swiss"]
[EventCountry "SVK"]
[SourceTitle "playchess.com"]
[Source "ChessBase"]
[SourceQuality "1"]
[TimeControl "5400+30"]

1. e4 {[%emt 0:00:13]} e6 {[%emt 0:00:00]} 2. d4 d5 {[%emt 0:00:00]} 3. e5 {[%emt 0:00:35]} c5 {[%emt 0:00:00]} 4. Be3 {[%emt 0:00:30]} Qb6 {[%emt 0:00:13]} 5. b3 {[%emt 0:01:12]} Nc6 {[%emt 0:00:49]} 6. Nc3 {[%emt 0:01:47]} cxd4 {[%emt 0:00:40]} 7. Na4 {[%emt 0:00:18]} Qb4+ {[%emt 0:00:21]} 8. Bd2 Qe7 9. Bb5 {[%emt 0:02:59]} Bd7 {[%emt 0:01:04]} 10. Nf3 {[%emt 0:00:16]} a6 {[%emt 0:00:32]} 11. Nb6 {[%emt 0:00:29]} Rb8 {[%emt 0:00:24]} 12. Nxd7 {[%emt 0:01:42]} Qxd7 {[%emt 0:00:03]} 13. Bxc6 {[%emt 0:00:20]} bxc6 {[%emt 0:00:26]} 14. Nxd4 {[%emt 0:00:20]} c5 {[%emt 0:00:47]} 15. Nf3 {[%emt 0:00:29]} Qb5 {[%emt 0:00:44]} 16. a4 {[%emt 0:03:12]} Qc6 {[%emt 0:00:36]} 17. O-O {[%emt 0:00:30]} Ne7 {[%emt 0:00:26]} 18. Ng5 {[%emt 0:03:57]} g6 {[%emt 0:01:22]} 19. Qf3 {[%emt 0:00:20]} Nf5 {[%emt 0:00:50]} 20. g4 {[%emt 0:01:08]} h6 {[%emt 0:00:26]} 21. Nh3 {[%emt 0:01:27]} Nd4 {[%emt 0:00:39]} 22. Qd3 {[%emt 0:03:45]} Qc7 {[%emt 0:01:22]} 23. Rae1 {[%emt 0:04:59]} Bg7 {[%emt 0:00:45]} 24. Nf4 {[%emt 0:00:32]} O-O {[%emt 0:04:29]} 25. b4 {[%emt 0:06:18]} Nc6 {[%emt 0:01:19]} 26. bxc5 {[%emt 0:02:14]} Nxe5 {[%emt 0:00:23]} 27. Qg3 {[%emt 0:03:37]} Qxc5 {[%emt 0:00:04]} 28. Bc3 {[%emt 0:06:38]} d4 {[%emt 0:00:33]} 29. Bd2 {[%emt 0:02:47]} Qxc2 {[%emt 0:00:02]} 30. Ba5 {[%emt 0:00:50]} Rb3 {[%emt 0:00:25]} 31. f3 {[%emt 0:00:43]} Qc5 {[%emt 0:01:26]} 32. Bd2 {[%emt 0:02:36]} Nd3 {[%emt 0:04:24]} 33. Nxd3 {[%emt 0:01:44]} Rxd3 {[%emt 0:00:13]} 34. Bf4 {[%emt 0:01:57]} Qc4 {[%emt 0:00:22]} 35. Rc1 {[%emt 0:00:17]} Qxa4 {[%emt 0:00:23]} 36. Be5 {[%emt 0:02:27]} f6 {[%emt 0:00:38]} 37. Bd6 {[%emt 0:03:52]} Re8 {[%emt 0:00:02]} 38. Ra1 {[%emt 0:00:42]} Qc6 {[%emt 0:00:45]} 39. Rac1 Rc3 40. Rcd1 {[%emt 0:02:32]} d3 {[%emt 0:01:16]} 41. Bb4 {[%emt 0:00:48]} Qb6+ {[%emt 0:00:00]} 42. Kg2 {[%emt 0:00:47]} Qxb4 {[%emt 0:00:00]} 43. Rb1 {[%emt 0:00:40]} Rb3 {[%emt 0:00:18]} 44. Rbd1 {[%emt 0:01:33]} f5 {[%emt 0:00:34]} 45. gxf5 exf5 46. Qxg6 {[%emt 0:06:09]} Re2+ {[%emt 0:00:35]} 47. Rf2 {[%emt 0:00:45]} Rxf2+ {[%emt 0:01:08]} 48. Kxf2 {[%emt 0:00:35]} Qd4+ {[%emt 0:00:10]} 49. Kg2 {[%emt 0:00:23]} Rb2+ {[%emt 0:00:26]} 50. Kg3 {[%emt 0:00:11]} Qe5+ {[%emt 0:03:02]} 51. Kh3 {[%emt 0:02:01]} Qxh2# {[%emt 0:00:31]} 0-1

[Event "19th IPCA WCC 2019"]
[Site "Ruzomberok"]
[Date "2019.07.06"]
[Round "9.18"]
[White "Pamarthi Audietya Aazadh"]
[Black "Frumin, Rebeka"]
[Result "1-0"]
[ECO "B45"]
[WhiteElo "1346"]
[BlackElo "1398"]
[Annotator "NA"]
[PlyCount "83"]
[EventDate "2019.06.28"]
[EventType "swiss"]
[EventCountry "SVK"]
[SourceTitle "playchess.com"]
[Source "ChessBase"]
[SourceQuality "1"]
[TimeControl "5400+30"]

1. e4 {[%emt 0:00:00]} c5 {[%emt 0:00:15]} 2. Nf3 {[%emt 0:00:00]} e6 {[%emt 0:01:05]} 3. Nc3 {[%emt 0:00:03]} Nc6 {[%emt 0:02:19]} 4. d4 {[%emt 0:00:24]} cxd4 {[%emt 0:02:02]} 5. Nxd4 {[%emt 0:00:10]} Nge7 {[%emt 0:01:13]} 6. Bb5 {[%emt 0:01:57]} g6 {[%emt 0:03:30]} 7. O-O {[%emt 0:00:41]} Bg7 {[%emt 0:01:00]} 8. Be3 {[%emt 0:01:11]} O-O {[%emt 0:02:36]} 9. Nce2 {[%emt 0:02:32]} a6 {[%emt 0:01:38]} 10. Ba4 {[%emt 0:00:48]} Ne5 {[%emt 0:03:58]} 11. c3 {[%emt 0:01:11]} N7c6 12. Bb3 b5 {[%emt 0:08:27]} 13. Qc1 {[%emt 0:01:17]} Re8 {[%emt 0:01:21]} 14. Bh6 {[%emt 0:01:29]} Bh8 {[%emt 0:03:31]} 15. h3 {[%emt 0:02:48]} Bb7 {[%emt 0:04:34]} 16. Ng3 {[%emt 0:00:25]} Rc8 {[%emt 0:01:06]} 17. Qd1 {[%emt 0:01:14]} g5 {[%emt 0:01:23]} 18. f4 {[%emt 0:03:40]} gxf4 {[%emt 0:04:36]} 19. Bxf4 {[%emt 0:00:19]} Ng6 {[%emt 0:02:52]} 20. Nxc6 {[%emt 0:01:00]} Bxc6 {[%emt 0:00:37]} 21. Qg4 {[%emt 0:01:49]} Qh4 {[%emt 0:02:32]} 22. Qxh4 {[%emt 0:01:34]} Nxh4 {[%emt 0:00:13]} 23. Bg5 {[%emt 0:00:16]} Ng6 {[%emt 0:00:30]} 24. Rae1 {[%emt 0:00:53]} b4 {[%emt 0:02:45]} 25. Bf6 {[%emt 0:00:03]} bxc3 {[%emt 0:00:35]} 26. bxc3 {[%emt 0:00:08]} Bb5 {[%emt 0:01:45]} 27. c4 {[%emt 0:07:01]} Bxc4 {[%emt 0:00:25]} 28. Bxc4 {[%emt 0:00:07]} Rxc4 {[%emt 0:00:14]} 29. Nh5 {[%emt 0:00:03]} Rb8 {[%emt 0:04:22]} 30. Bxh8 {[%emt 0:00:18]} Nxh8 {[%emt 0:00:41]} 31. Nf6+ {[%emt 0:00:25]} Kg7 {[%emt 0:00:41]} 32. Re3 {[%emt 0:00:02]} Rb7 {[%emt 0:01:02]} 33. Ne8+ {[%emt 0:00:36]} Kf8 {[%emt 0:01:08]} 34. Nd6 {[%emt 0:00:03]} Rbc7 {[%emt 0:00:18]} 35. Nxc4 {[%emt 0:00:46]} Rxc4 {[%emt 0:00:09]} 36. Rb1 {[%emt 0:00:34]} Ke7 {[%emt 0:00:39]} 37. Rb6 {[%emt 0:01:01]} Ra4 {[%emt 0:00:23]} 38. a3 {[%emt 0:00:15]} Ng6 {[%emt 0:00:19]} 39. Rb4 {[%emt 0:01:57]} Ra5 {[%emt 0:00:46]} 40. Rb7 {[%emt 0:01:04]} Ne5 {[%emt 0:01:00]} 41. Rg3 {[%emt 0:02:49]} Rxa3 {[%emt 0:00:38]} 42. Rxa3 {[%emt 0:00:12]} 1-0

[Event "19th IPCA WCC 2019"]
[Site "Ruzomberok"]
[Date "2019.07.06"]
[Round "9.19"]
[White "Sovietova, Kateryna"]
[Black "Angappan A"]
[Result "0-1"]
[ECO "D00"]
[WhiteElo "1279"]
[BlackElo "1267"]
[Annotator "NA"]
[PlyCount "112"]
[EventDate "2019.06.28"]
[EventType "swiss"]
[EventCountry "SVK"]
[SourceTitle "playchess.com"]
[Source "ChessBase"]
[SourceQuality "1"]
[TimeControl "5400+30"]

1. d4 {[%emt 0:00:00]} d5 {[%emt 0:00:00]} 2. Bf4 {[%emt 0:00:00]} e6 {[%emt 0:00:00]} 3. e3 {[%emt 0:00:10]} Nf6 {[%emt 0:00:00]} 4. h3 {[%emt 0:00:18]} Be7 {[%emt 0:00:09]} 5. Nf3 {[%emt 0:00:30]} O-O {[%emt 0:00:11]} 6. Bd3 {[%emt 0:01:27]} b6 {[%emt 0:00:12]} 7. O-O {[%emt 0:01:02]} Bb7 {[%emt 0:00:06]} 8. Ne5 {[%emt 0:01:22]} Nbd7 {[%emt 0:00:14]} 9. Nd2 {[%emt 0:02:01]} c5 {[%emt 0:00:15]} 10. c3 {[%emt 0:00:41]} a6 {[%emt 0:01:17]} 11. Ndf3 {[%emt 0:01:52]} b5 {[%emt 0:00:44]} 12. Nxd7 {[%emt 0:05:35]} Qxd7 {[%emt 0:00:13]} 13. Ne5 {[%emt 0:00:23]} Qd8 {[%emt 0:01:03]} 14. Re1 {[%emt 0:03:38]} Rc8 {[%emt 0:00:12]} 15. a3 {[%emt 0:08:47]} b4 {[%emt 0:02:25]} 16. axb4 {[%emt 0:03:45]} cxb4 {[%emt 0:00:18]} 17. Bxa6 {[%emt 0:17:46]} Bxa6 {[%emt 0:00:32]} 18. Rxa6 {[%emt 0:00:25]} bxc3 {[%emt 0:00:10]} 19. Rc6 {[%emt 0:06:59]} cxb2 {[%emt 0:01:56]} 20. Rxc8 {[%emt 0:04:08]} Qxc8 {[%emt 0:00:07]} 21. Nd3 {[%emt 0:06:35]} Ba3 {[%emt 0:06:04]} 22. f3 {[%emt 0:17:31]} Qc3 {[%emt 0:02:00]} 23. Qb1 {[%emt 0:05:26]} Rc8 {[%emt 0:00:45]} 24. Kh2 {[%emt 0:05:17]} Qc2 {[%emt 0:03:53]} 25. Nxb2 {[%emt 0:03:20]} Qxb2 {[%emt 0:00:49]} 26. Qxb2 {[%emt 0:01:48]} Bxb2 {[%emt 0:00:12]} 27. Rb1 {[%emt 0:01:23]} Ba3 {[%emt 0:00:16]} 28. Rb3 {[%emt 0:00:28]} Bf8 {[%emt 0:00:26]} 29. Be5 {[%emt 0:00:39]} h6 {[%emt 0:00:15]} 30. g4 {[%emt 0:00:41]} Rd8 {[%emt 0:00:09]} 31. Rc3 {[%emt 0:00:15]} Bd6 {[%emt 0:00:14]} 32. Bxd6 {[%emt 0:00:09]} Rxd6 {[%emt 0:00:08]} 33. Rc8+ {[%emt 0:00:16]} Kh7 {[%emt 0:00:12]} 34. Rc7 {[%emt 0:00:29]} Rd7 {[%emt 0:00:43]} 35. Rc3 {[%emt 0:00:08]} Rb7 {[%emt 0:00:42]} 36. Kg3 {[%emt 0:00:32]} Kg6 {[%emt 0:01:09]} 37. h4 {[%emt 0:01:07]} h5 {[%emt 0:01:07]} 38. gxh5+ {[%emt 0:00:50]} Nxh5+ {[%emt 0:00:17]} 39. Kf2 {[%emt 0:00:44]} Rb2+ {[%emt 0:00:14]} 40. Ke1 {[%emt 0:00:40]} Rh2 {[%emt 0:00:41]} 41. e4 {[%emt 0:00:34]} Rxh4 {[%emt 0:01:26]} 42. exd5 {[%emt 0:00:34]} exd5 {[%emt 0:00:27]} 43. Rd3 {[%emt 0:00:23]} f5 {[%emt 0:00:56]} 44. Kf2 {[%emt 0:00:29]} Rh2+ {[%emt 0:00:26]} 45. Ke1 {[%emt 0:00:17]} Nf4 {[%emt 0:00:49]} 46. Ra3 {[%emt 0:00:49]} Kg5 {[%emt 0:00:43]} 47. Ra7 {[%emt 0:00:37]} g6 {[%emt 0:00:09]} 48. Ra1 {[%emt 0:00:10]} Rh1+ {[%emt 0:00:46]} 49. Kf2 {[%emt 0:00:24]} Rxa1 {[%emt 0:00:09]} 50. Kg3 {[%emt 0:00:21]} Rf1 {[%emt 0:00:19]} 51. Kh2 Rxf3 {[%emt 0:00:33]} 52. Kg1 {[%emt 0:00:46]} Kg4 {[%emt 0:00:24]} 53. Kh2 {[%emt 0:00:27]} Rf2+ {[%emt 0:00:26]} 54. Kh1 {[%emt 0:00:27]} Kg3 {[%emt 0:00:21]} 55. Kg1 {[%emt 0:00:07]} Ne2+ {[%emt 0:00:09]} 56. Kh1 {[%emt 0:00:07]} Rf1# {[%emt 0:00:06]} 0-1

[Event "19th IPCA WCC 2019"]
[Site "Ruzomberok"]
[Date "2019.07.06"]
[Round "9.21"]
[White "Wollner, Bohus"]
[Black "Felegyi, Karoly"]
[Result "0-1"]
[ECO "D31"]
[WhiteElo "1222"]
[BlackElo "1674"]
[Annotator "NA"]
[PlyCount "37"]
[EventDate "2019.06.28"]
[EventType "swiss"]
[EventCountry "SVK"]
[SourceTitle "playchess.com"]
[Source "ChessBase"]
[SourceQuality "1"]
[TimeControl "5400+30"]

1. d4 {[%emt 0:00:00]} d5 {[%emt 0:00:00]} 2. c4 {[%emt 0:00:00]} e6 {[%emt 0:01:04]} 3. Nc3 {[%emt 0:00:39]} Bb4 {[%emt 0:01:14]} 4. Bd2 {[%emt 0:01:25]} Bxc3 {[%emt 0:02:19]} 5. Bxc3 {[%emt 0:00:25]} Nf6 {[%emt 0:00:15]} 6. Nh3 {[%emt 0:02:12]} Ne4 {[%emt 0:04:32]} 7. Bb4 {[%emt 0:00:34]} Nc6 {[%emt 0:00:17]} 8. Ba3 {[%emt 0:00:09]} Nd6 {[%emt 0:06:37]} 9. c5 {[%emt 0:10:23]} Nc4 {[%emt 0:00:57]} 10. e3 {[%emt 0:00:25]} Nxa3 {[%emt 0:00:33]} 11. bxa3 {[%emt 0:00:03]} O-O {[%emt 0:00:17]} 12. Be2 {[%emt 0:01:38]} e5 {[%emt 0:04:26]} 13. O-O {[%emt 0:03:35]} Bxh3 {[%emt 0:03:00]} 14. gxh3 {[%emt 0:00:07]} exd4 {[%emt 0:00:12]} 15. Qd3 {[%emt 0:03:17]} Qg5+ {[%emt 0:01:53]} 16. Kh1 {[%emt 0:00:47]} dxe3 {[%emt 0:00:50]} 17. fxe3 {[%emt 0:00:16]} Rae8 {[%emt 0:00:27]} 18. Rg1 {[%emt 0:00:12]} Qxe3 {[%emt 0:00:51]} 19. Qxe3 {[%emt 0:00:29]} 0-1